Cogmind - Beta 10 X2 --- EXPLORER MODE // 2020.07.18 @ 22:25:52 // Experiment/BattleRoyale Player: Minty Result: Self-destructed Performance ------------- Evolutions (0) 0 Regions Visited (0) 0 Robots Destroyed (1) 5 Value Destroyed (500) 500 Prototype IDs (2) 40 Alien Tech Used (0) 0 Bonus (0) 0 TOTAL SCORE: 545 Bonus ------- None Cogmind --------- Core Integrity 65/250 Matter 244/300 Energy 502/525 System Corruption 0% Temperature Cool (567) Movement Treading (165) Ox1 Location -5/Wartown Parts ------- > --- POWER (2) -------- Deuterium Engine Quantum Reactor > --- PROPULSION (4) --- Advanced Heavy Treads > --- UTILITY (6) ------ Improved Sensor Array Improved Maneuvering Thrusters Improved Phase Shifter Advanced Focal Shield > --- WEAPON (4) ------- Ion Cannon Cooled Plasma Cannon Hypervelocity Mass Driver Enhanced Force Lance > --- INVENTORY (4) ---- (None) Peak State ------------ > --- POWER ------------ Deuterium Engine Quantum Reactor > --- PROPULSION ------- Advanced Heavy Treads > --- UTILITY ---------- Improved Sensor Array Improved Maneuvering Thrusters Improved Phase Shifter Advanced Focal Shield Improved Shock Absorption System Improved Shock Absorption System > --- WEAPON ----------- Ion Cannon Cooled Plasma Cannon Hypervelocity Mass Driver Enhanced Force Lance > --- INVENTORY -------- (None) [Rating: 85] Favorites ----------- Power Deuterium Engine Engine Deuterium Engine Power Core Fission Core Reactor Quantum Reactor Propulsion Advanced Heavy Treads Treads Advanced Heavy Treads Leg Biometal Leg Utility Improved Sensor Array Device Improved Sensor Array Weapon Ion Cannon Energy Gun Variable Charge Gun Energy Cannon Ion Cannon Ballistic Gun Coil Gun Ballistic Cannon Hypervelocity Mass Driver Piercing Weapon Enhanced Force Lance Build | -5 ------- Run | Tow Slots Evolved . | . Power . | . Propulsion . | . Utility . | . Weapon . | . Parts Attached 7 | 7 Power 1 | 1 Engine . | . Core . | . Reactor 1 | 1 Propulsion . | . Treads . | . Leg . | . Wheel . | . Hover . | . Flight . | . Utility 3 | 3 Device 3 | 3 Storage . | . Processor . | . Hackware . | . Protection . | . Artifact . | . Weapon 3 | 3 Energy Gun . | . Energy Cannon 1 | 1 Ballistic Gun . | . Ballistic Cannon 1 | 1 Launcher . | . Special Weapon . | . Impact Weapon . | . Slashing Weapon . | . Piercing Weapon 1 | 1 Special Melee Weapon . | . Unidentified Prototypes 1 | 1 Parts Lost . | . Power . | . Propulsion . | . Utility . | . Weapon . | . Highest Loss Streak . | . Average Slot Usage (%) 64 | 64 Engine 6 | 6 Core 2 | 2 Reactor 3 | 3 Treads 6 | 6 Device 23 | 23 Energy Cannon 11 | 11 Ballistic Gun 2 | 2 Ballistic Cannon 3 | 3 Piercing Weapon 3 | 3 Naked Turns . | . Heaviest Build 81 | 81 Greatest Support 70 | 70 Greatest Overweight (x) 1 | 1 Average Overweight (x) . | . Largest Inventory Capacity 4 | 4 Average Capacity 4 | 4 Most Carried . | . Average Carried . | . Final Capacity 4 | 4 Final Carried . | . Class Distribution -------------------- 100% | Hacker-Tank Dominant Class ---------------- Hacker-Tank | -5/Wartown Resources | -5 ----------- Run | Tow Matter Collected 28 | 28 Remotely . | . Salvage Created 63 | 63 Parts 2 | 2 Haulers Intercepted . | . Recyclers Shooed . | . Parts Field Recycled . | . Retrieved Matter . | . Parts Self-Destructed . | . Prevented . | . Kills | -5 ------- Run | Tow Combat Hostiles Destroyed 1 | 1 Cannons 1 | 1 Classes Destroyed 1 | 1 Player 1 | 1 Best Kill Streak 1 | 1 Combat Bots Only 1 | 1 Max Kills in Single Turn 1 | 1 Gunslinging . | . Exploded . | . Melee . | . Uniques/NPCs Destroyed . | . Combat | -5 -------- Run | Tow Damage Taken 419 | 419 Core 237 | 237 Absorbed by Shields . | . Redirected to Core 5756 | 5756 Core Remaining (%) . | . Volleys Fired 14 | 14 Largest 3 | 3 Hottest 161 | 161 Shots Fired 42 | 42 Gun 7 | 7 Cannon 35 | 35 Launcher . | . Special . | . Kinetic 14 | 14 Thermal 28 | 28 Explosive . | . Electromagnetic . | . Robot Hit Streak 13 | 13 Robot Miss Streak 1 | 1 Penetration Max . | . Secondary Targets . | . Shots Hit Robots 28 | 28 Core Hits . | . Critical Hits 4 | 4 Critical Kills . | . Critical Parts Destroyed 3 | 3 Melee Attacks . | . Impact . | . Slashing . | . Piercing . | . Sneak Attacks . | . Combat Hostiles . | . Follow-up Attacks . | . Damage Inflicted 587 | 587 Guns 96 | 96 Cannons 491 | 491 Explosions . | . Melee . | . Ramming . | . Kinetic 147 | 147 Thermal 440 | 440 Explosive . | . Electromagnetic . | . Impact . | . Slashing . | . Piercing . | . Highest Corruption . | . Average Corruption . | . Corruption Purged . | . Overload Shots . | . Overflow Damage . | . Projectiles . | . Explosions . | . Melee . | . Knockbacks . | . Impact . | . Kinetic . | . Secondary . | . Self-Inflicted Damage 2 | 2 Shots 1 | 1 Rammed . | . Targets Rammed . | . Kicked . | . Crushed . | . Highest Temperature 578 | 578 Average Temperature 178 | 178 Received Heat Transfer 36 | 36 Effects 6 | 6 Shutdowns 2 | 2 Short Circuit 1 | 1 Damage (minor) 2 | 2 Damage (core) 1 | 1 Siege Activations . | . Robots Corrupted . | . Combat Hostiles . | . Parts Fried . | . Impact Corruptions . | . Robots Melted . | . Combat Hostiles . | . Parts Melted . | . Heat Transferred 147 | 147 Parts Sabotaged . | . Parts Stolen . | . Parts Stripped . | . Power Chain Reactions . | . Missiles Intercepted . | . Alert | -5 ------- Run | Tow Peak Influence . | . Average Influence . | . Maximum Alert Level . | . Low Security (%) . | . Level 1 . | . Level 2 . | . Level 3 . | . Level 4 . | . Level 5 . | . High Security . | . Max Security . | . Squads Dispatched . | . Investigation . | . Extermination . | . Reinforcement . | . Assault . | . Garrison . | . Intercept . | . Construction Impeded . | . Haulers Reinforced . | . Stealth | -5 --------- Run | Tow Distress Signals . | . Communications Jammed . | . Distress Signals . | . Times Spotted 3 | 3 Peak Tracking Total 2 | 2 Tactical Retreats . | . Traps | -5 ------- Run | Tow Traps Triggered . | . Indirectly . | . Trap Hack Attempts . | . Triggered . | . Disarmed . | . Reprogrammed . | . Reused . | . Traps Extracted . | . Installed . | . Triggered . | . Machines | -5 ---------- Run | Tow Machines Disabled 9 | 9 Max in Single Turn 4 | 4 Machines Sabotaged . | . Garrisons Compromised . | . Overloaded Fab Kills . | . Fab Network Shutdowns . | . Hacking | -5 --------- Run | Tow Machines Accessed . | . Terminals . | . Fabricators . | . Repair Stations . | . Recycling Units . | . Scanalyzers . | . Garrison Access . | . Total Hacks . | . Successful . | . Failed . | . Catastrophic . | . Database Lockouts . | . Manual . | . Terminals . | . Fabricators . | . Repair Stations . | . Recycling Units . | . Scanalyzers . | . Garrison Access . | . Terminal Hacks . | . Fabricator Hacks . | . Repair Station Hacks . | . Recycling Unit Hacks . | . Scanalyzer . | . Garrison Access Hacks . | . Unauthorized Hacks . | . Terminals . | . Fabricators . | . Repair Stations . | . Recycling Units . | . Scanalyzers . | . Garrison Access . | . Data Cores Recovered . | . Used . | . Hacking Detections . | . Full Trace Events . | . Feedback Events . | . Feedback Blocked . | . Robot Schematics Acquired . | . Robots Built . | . Matter . | . Time . | . Total Robot Build Rating . | . Part Schematics Acquired . | . Parts Built . | . Matter . | . Time . | . Total Part Build Rating . | . Parts Repaired . | . Time . | . Parts Recycled . | . Recycled Matter . | . Retrieved Matter . | . Retrieved Components . | . Parts Scanalyzed . | . Part Schematics Acquired . | . Parts Damaged . | . Bothacking | -5 ------------ Run | Tow Used RIF Installer . | . Robots Hacked . | . Non-combat . | . Combat . | . Robot Hacks Applied . | . Relay Couplers Released . | . Robots Rewired . | . Allies Hacked . | . Hacks Repelled . | . Allies | -5 -------- Run | Tow Total Allies . | . Largest Group . | . Highest-Rated Group . | . Highest-Rated Ally . | . Total Orders . | . Ally Attacks . | . Total Damage . | . Kills . | . Allies Corrupted . | . Allies Melted . | . Intel | -5 ------- Run | Tow Robot Analysis Total . | . Derelict Logs Recovered . | . Drone Launches . | . Drone Recoveries . | . Exploration | -5 ------------- Run | Tow Turns Passed 446 | 446 Spaces Moved 240 | 240 Core . | . Treads 240 | 240 Legs . | . Wheels . | . Hover . | . Flight . | . Fastest Speed 145 | 145 Average Speed 157 | 157 Slowest Speed 165 | 165 Overloaded Moves . | . Propulsion Burnouts . | . Robots Hopped . | . Cave-ins Triggered . | . Exploration Rate (%) 9 | 9 Regions Visited 1 Branch Regions 1 Pre-discovered Areas . | . Known Exits Taken . | . Unknown Exits Taken . | . Scrap Searched . | . Spaces Dug . | . Terrain Destroyed 26 | 26 Melee . | . Projectile 2 | 2 AOE 24 | 24 Actions | -5 --------- Run | Tow Total 279 | 279 Wait 8 | 8 Move 240 | 240 Hop . | . Pick Up . | . Fast Attach 7 | 7 Attach . | . Detach . | . Swap . | . Drop 10 | 10 Fire 14 | 14 Melee . | . Ram . | . Kick . | . Crush . | . Escape Stasis . | . Rewire . | . Trap . | . Miscellaneous . | . Route ------- -5/Wartown History --------- Turn | Location | Event 175 | -5/Wartown | Found Enh. Force Lance 310 | -5/Wartown | Build established: Hacker-Tank 444 | -5/Wartown | Core integrity fell below 50% 447 | -5/Wartown | Self-destructed Last Messages --------------- 00420_ Nuclear Reactor explodes. 00420_ Matter Pump disabled. 00421_ Asciiline-23 suffers critical hit. 00421_ Destroyed Hvy. Siege Treads. 00423_ Penetrated by HV Slug. 00424_ Nuclear Reactor explodes. 00425_ Hardheart-12 suffers critical hit. 00430_ Asciiline-23 attaches Impulse Thruster. 00431_ Nuclear Reactor explodes. 00435_ Penetrated by HV Slug. 00438_ The unstable cave ceiling collapses. 00439_ Fusion Modulator explodes. 00440_ Penetrated by HV Slug. 00443_ Hardheart-12 suffers critical hit. 00443_ Destroyed Hvy. Machine Gun. 00443_ Penetrated by HV Slug. 00444_ Power failure, Deuterium Engine shutdown. 00446_ Adv. Focal Shield permanently disabled. 00446_ Overheating: Short circuit. 00447_ Overheating: Core damaged (-47). Map ----- +----------------------------------------------------+ | ???????????????????##### ##### # ???? | | ???????????????????# ???? | | ???????????????????# / ???? | | ???????????????????# ????? | | ???????????????????# ????? | | ???????????????????# """ """ # ????? | | ???????????????????# """ """ # ????? | | ???????????????????# """ """ #? ?????? | | ???????????????????# #? ??????? | | ???????????????????# """ """ #? ??????? | | ???????????????????# """ """ #?? ???????? | | ???????????????????# """ """ +??? ???????? | | ???????????????????# #?? ????????? | | ???????????????????#######+###### ????????? | | ???????????????????# ????????? | | ???????????????????# / ????????? | | ???????????????????# ????????? | | ??????????############## " ""?????????? | | ??????????# + @ " ??????????? | | ??????????# ??????????? | | ??????????# ???????? | | ??????????# ?????????? | | ??????????# ?????????? | | ??????????# ????????? | | ??????????# ????????? | | ??????????# @ ????????? | | ??????????# * @ # ????????? | | ??????????# ????????? | | ??????????# ; # # ?????????? | | ??????????# ; #?? #??????????? | | ??????????###########;;; ; ?????????????? | | ??????????????????? ; ; ???????????? | | ?????????????????? ; ; #??????????? | | ????????????????? ; ; #??????????? | | ????????????????# ; ; ???????????? | | ????????????????# ; ;;;# ???????????? | | ????????????????# ????????????? | | ????????????????# ? ????????????? | | ????????????????# ! ??????????????? | | ?????????????????? !! !* ????????????????? | | ????????????????????? ]]] ???????????????????? | | ???????????????????????! ?????????????????????? | | ?????????????????????????????????????????????????? | | ?????????????????????????????????????????????????? | | ?????????????????????????????????????????????????? | | ?????????????????????????????????????????????????? | | ?????????????????????????????????????????????????? | | ?????????????????????????????????????????????????? | | ?????????????????????????????????????????????????? | | ?????????????????????????????????????????????????? | +----------------------------------------------------+ Best States ------------- Heat Dissipation 25 Energy Generation 34 Energy Capacity 525 Matter Stores 300 Matter Capacity 300 Sight Range 16 Robot Scan Range 13 Terrain Scan Density 10 Resistance: KI 65 Resistance: TH 35 Resistance: EX 85 Resistance: EM 35 Resistance: I 35 Resistance: S 35 Resistance: P 35 Phase Shifting 10 Evasion (%) 50 Recoil Reduction 2 Offensive Hacking 20 Item Schematics ----------------- None Robot Schematics ------------------ None Fabricated ------------ Nothing Alien Tech Used ----------------- None Achievements -------------- None Challenges ------------ None Game ------ Seed PulseTeslaMallet Manual? 0 Play Time 00:04:24 Cumulative 211.8 hours Start 2020.07.18 @ 22:21:51 End 2020.07.18 @ 22:25:52 Sessions 1 Manual Loads 0 Difficulty Explorer Special Mode Experiment/BattleRoyale Game No. 128 Rogue 0 Adventurer 44 Explorer 84 Win Type - Total 5 Types 4/0/1/0/0/0/0 Lore% 53 Gallery% 79 Achievement% 58 Wizard Run 0 Options --------- ASCII 0 Keyboard 0 Movement Mouse Keybinds 0 Fullscreen 1 Font 18/TerminusBold Map View 76x50 Tactical HUD 1 Map Filters NONE Filters SATURATION(100) Steam 1 RUN: 723ed3fa-275b-48fd-8548-5face2daed56